bitfinex/quotes_BTCUSD_20251201
["timestamp","ask_amount","ask_price","bid_price","bid_amount"]
[1764627868188,0.00361307,86628.0,86627.0,0.06997562]
[1764627868332,0.00361307,86628.0,86627.0,0.11502562]
[1764627869239,0.02845101,86628.0,86627.0,0.11502562]
[1764627869445,0.04003503,86628.0,86627.0,0.11502562]
[1764627869649,0.27090726,86628.0,86627.0,0.11502562]
[1764627876922,0.01828,86635.0,86632.0,0.03957]
[1764627877130,0.23085358,86635.0,86634.0,0.03089]
[1764627877312,0.2424376,86635.0,86634.0,0.03089]
[1764627878133,0.24245625,86628.0,86627.0,0.00011562]
[1764627880422,0.24245625,86628.0,86627.0,0.00211562]
[1764627884998,0.23087223,86628.0,86627.0,0.00211562]
[1764627885212,0.24245625,86628.0,86627.0,0.00211562]
[1764627888281,0.01158402,86628.0,86627.0,0.00211562]
[1764627888946,0.24245625,86628.0,86627.0,0.00211562]
[1764627889169,0.27102868,86628.0,86627.0,0.00211562]
[1764627891768,0.00361301,86628.0,86627.0,0.11376318]
[1764627891970,0.00361301,86628.0,86627.0,0.10369562]
[1764627893855,0.00361301,86628.0,86627.0,0.04168562]
[1764627893993,0.00361301,86628.0,86627.0,0.10369562]
[1764627894224,0.23448524,86628.0,86627.0,0.10369562]
[1764627897103,0.00361301,86628.0,86627.0,0.10369562]
[1764627899786,0.23448485,86628.0,86627.0,0.10369562]
[1764627900182,0.23448485,86628.0,86627.0,0.00211562]
[1764627900382,0.24245625,86628.0,86627.0,0.00211562]
[1764627900608,0.65948913,86628.0,86627.0,0.00211562]
[1764627900905,0.71916524,86628.0,86627.0,0.00211562]
[1764627901105,0.89691419,86628.0,86627.0,0.00211562]
[1764627901306,0.89691419,86628.0,86569.0,0.11677]
[1764627901307,0.23099222,86583.0,86569.0,0.11677]
[1764627901562,0.29810742,86583.0,86582.0,0.00063995]
[1764627902371,0.29810753,86583.0,86582.0,0.00063995]
[1764627902742,0.29810753,86583.0,86582.0,0.00263995]
[1764627902941,0.29810753,86583.0,86582.0,0.00363995]
[1764627903495,0.29449283,86583.0,86582.0,0.00363995]
[1764627904949,0.31064881,86583.0,86582.0,0.00363995]
[1764627905153,0.7113177,86583.0,86582.0,0.00363995]
[1764627905802,0.7113177,86583.0,86582.0,0.00263995]
[1764627906009,0.7113177,86583.0,86582.0,0.00063995]
[1764627906231,0.82654366,86583.0,86582.0,0.00063995]
[1764627907722,0.82754366,86583.0,86582.0,0.00063995]
[1764627909969,0.86227756,86583.0,86582.0,0.00063995]
[1764627910707,0.7470516,86583.0,86582.0,0.00063995]
[1764627911070,0.51605938,86583.0,86582.0,0.00063995]
[1764627911270,0.7470516,86583.0,86582.0,0.00063995]
[1764627915360,0.7028616,86583.0,86582.0,0.00063995]
[1764627915569,0.37953146,86583.0,86582.0,0.00063995]
[1764627915784,0.37591659,86583.0,86582.0,0.00063995]
[1764627916320,0.05291659,86583.0,86582.0,0.00063995]
[1764627922092,0.05653139,86583.0,86582.0,0.00063995]
[1764627927703,0.28752361,86583.0,86582.0,0.00063995]
[1764627928375,0.30878627,86583.0,86582.0,0.00063995]
[1764627928664,0.31240107,86583.0,86582.0,0.00063995]
[1764627929880,0.34358222,86583.0,86582.0,0.00063995]
[1764627930091,0.63540107,86583.0,86582.0,0.00063995]
[1764627930408,0.64698509,86583.0,86582.0,0.00063995]
[1764627931543,0.64698509,86583.0,86504.0,2.90220503]
[1764627931544,0.01155214,86564.0,86560.0,0.0002]
[1764627931743,0.0036148,86563.0,86560.0,0.01175268]
[1764627931908,0.0036148,86562.0,86560.0,0.01175268]
[1764627932110,0.0036148,86561.0,86560.0,0.01175268]
[1764627932713,0.0036148,86561.0,86560.0,0.01275268]
[1764627932920,0.0036148,86561.0,86560.0,0.01475268]
[1764627933137,0.0036148,86561.0,86560.0,0.01375268]
[1764627933525,0.0036148,86561.0,86560.0,0.01475268]
[1764627933730,0.0036148,86561.0,86560.0,0.0032]
[1764627934114,0.0036148,86561.0,86560.0,0.0012]
[1764627934314,0.0036148,86561.0,86560.0,0.0032]
[1764627936911,0.0036148,86561.0,86560.0,0.0022]
[1764627937081,0.0036148,86561.0,86560.0,0.0002]
[1764627937282,0.0036148,86561.0,86560.0,0.00189859]
[1764627937501,0.0036148,86561.0,86560.0,0.00389859]
[1764627937700,0.0036148,86561.0,86560.0,0.01337863]
[1764627938155,0.0036148,86561.0,86560.0,0.00389859]
[1764627938907,0.0036148,86561.0,86560.0,0.00289859]
[1764627939213,0.0036148,86561.0,86560.0,0.00389859]
[1764627940572,0.00038636,86564.0,86563.0,0.23104559]
[1764627940766,0.00400145,86564.0,86563.0,0.23104559]
[1764627941274,0.02494149,86570.0,86568.0,0.01155161]
[1764627941421,0.01155107,86572.0,86569.0,0.23102958]
[1764627941970,0.01155121,86571.0,86568.0,0.00011562]
[1764627942394,0.24257749,86571.0,86568.0,0.00011562]
[1764627942533,0.23102863,86570.0,86568.0,0.00011562]
[1764627942737,0.01155107,86572.0,86568.0,0.01166723]
[1764627943241,0.24257697,86571.0,86568.0,0.02805141]
[1764627943442,0.24257697,86571.0,86568.0,0.00011562]
[1764627943638,0.01155121,86571.0,86569.0,0.001]
[1764627943883,0.02983054,86576.0,86568.0,0.00011562]
[1764627943884,0.03117216,86583.0,86577.0,0.01155041]
[1764627944057,0.01154947,86584.0,86577.0,0.01155041]
[1764627944236,0.01155001,86580.0,86573.0,0.23101859]
[1764627944437,0.24254972,86581.0,86576.0,0.01155054]
[1764627944656,0.01154987,86581.0,86577.0,0.01155041]
[1764627945191,0.01155001,86580.0,86576.0,0.01155054]
[1764627945398,0.323,86584.0,86579.0,0.01155014]
[1764627945574,0.01154974,86582.0,86577.0,0.01155041]
[1764627945756,0.0634662,86583.0,86578.0,0.24255583]
[1764627946099,0.24254656,86582.0,86577.0,0.01155041]
[1764627946486,0.001,86580.0,86577.0,0.01155041]
[1764627946665,0.24254656,86582.0,86577.0,0.01155041]
[1764627946996,0.01154987,86581.0,86577.0,0.01155041]
[1764627947211,0.0634662,86583.0,86579.0,0.23100046]
[1764627947412,0.3864662,86583.0,86578.0,0.01155027]
[1764627947594,0.001,86580.0,86579.0,0.01155014]
[1764627947757,0.01154974,86582.0,86579.0,0.01155014]
[1764627947962,0.01154974,86582.0,86579.0,0.24255293]
[1764627948191,0.001,86581.0,86579.0,0.24255293]
[1764627949163,0.001,86581.0,86579.0,0.01155014]
[1764627949361,0.01154974,86582.0,86579.0,0.01155014]
[1764627949780,0.001,86580.0,86579.0,0.01155014]
[1764627949978,0.01154974,86582.0,86579.0,0.01155014]
[1764627950361,0.3864662,86583.0,86580.0,0.01155001]
[1764627950534,0.3864662,86583.0,86579.0,0.01155014]
[1764627950893,0.001,86581.0,86578.0,0.01155027]
[1764627951152,0.01154974,86582.0,86578.0,0.01155027]
[1764627951375,0.01254974,86582.0,86578.0,0.01155027]
[1764627951747,0.001,86582.0,86580.0,0.23099774]
[1764627951969,0.001,86582.0,86579.0,0.24255075]
[1764627952177,0.001,86582.0,86580.0,0.23099831]
[1764627952835,0.05191659,86583.0,86581.0,0.23099562]
[1764627953039,0.05191659,86583.0,86581.0,0.22999562]
[1764627953612,0.001,86582.0,86581.0,0.22999562]
[1764627953950,0.05191659,86583.0,86581.0,0.22999562]
[1764627954188,0.05291659,86583.0,86581.0,0.22999562]
[1764627954636,0.05191659,86583.0,86581.0,0.22999562]
[1764627955419,0.01154987,86581.0,86574.0,0.23126821]
[1764627955764,0.05191659,86582.0,86578.0,0.23100556]
[1764627955958,0.06446633,86582.0,86579.0,0.01155014]
[1764627956147,0.06346633,86582.0,86579.0,0.01155014]
[1764627956989,0.06446633,86582.0,86579.0,0.01155014]
[1764627958091,0.06446633,86582.0,86577.0,0.2425568]
[1764627959245,0.01155014,86579.0,86576.0,0.01155054]
[1764627959804,0.06446633,86582.0,86577.0,0.24255864]
[1764627960027,0.01154987,86581.0,86577.0,0.24255864]
[1764627960244,0.01154987,86581.0,86577.0,0.01155041]
[1764627960654,0.24254907,86581.0,86577.0,0.01155041]
[1764627960874,0.01155014,86579.0,86574.0,0.0118048]
[1764627961094,0.01155014,86579.0,86575.0,0.01155067]
[1764627961320,0.24255469,86579.0,86575.0,0.01155067]
[1764627962647,0.24255784,86578.0,86574.0,0.00025399]
[1764627962912,0.24255784,86578.0,86574.0,0.0118048]
[1764627963116,0.01155014,86579.0,86575.0,0.24256424]
[1764627963369,0.23100087,86580.0,86575.0,0.24256424]
[1764627963370,0.24255088,86580.0,86575.0,0.24256424]
[1764627963573,0.24255088,86580.0,86576.0,0.01155054]
[1764627966187,0.01155041,86577.0,86574.0,0.00025399]
[1764627966389,0.01155041,86577.0,86574.0,0.0118048]
[1764627967183,0.01155041,86577.0,86574.0,0.00025399]
[1764627968025,0.23101251,86576.0,86574.0,0.00025399]
[1764627968187,0.25594886,86576.0,86574.0,0.00025399]
[1764627968369,0.02493635,86575.0,86574.0,0.00025399]
[1764627969471,0.25594886,86576.0,86574.0,0.00025399]
[1764627970301,0.05611063,86575.0,86574.0,0.00025399]
[1764627970507,0.03652037,86575.0,86574.0,0.00025399]
[1764627973246,0.02593635,86575.0,86574.0,0.00025399]
[1764627973532,0.001,86575.0,86574.0,0.00025399]
[1764627973766,0.01928,86575.0,86574.0,0.00025399]
[1764627975714,0.04421635,86575.0,86574.0,0.00025399]
[1764627976123,0.01928,86575.0,86574.0,0.00025399]
[1764627977381,0.04421635,86575.0,86574.0,0.00025399]
[1764627977599,0.02391154,86575.0,86574.0,0.00025399]
[1764627977801,0.00563154,86575.0,86574.0,0.00025399]
[1764627978026,0.02391154,86575.0,86574.0,0.00025399]
[1764627979461,0.001,86575.0,86574.0,0.00025399]
[1764627981317,0.001,86575.0,86574.0,0.23127023]
[1764627981522,0.001,86575.0,86574.0,0.24275027]
[1764627982085,0.001,86575.0,86574.0,0.23127023]
[1764627982289,0.01154987,86581.0,86576.0,0.24256122]
[1764627982491,0.01155014,86579.0,86574.0,0.00025399]
[1764627982704,0.01155027,86578.0,86574.0,0.0118048]
[1764627983280,0.01155027,86578.0,86574.0,0.0138048]
[1764627983487,0.01155041,86577.0,86574.0,0.00025399]
[1764627983770,0.01155041,86577.0,86574.0,0.00125399]
[1764627985104,0.01154974,86582.0,86576.0,0.01155054]
[1764627985305,0.01155001,86580.0,86576.0,0.01155054]
[1764627985476,0.23100625,86578.0,86575.0,0.01155067]
[1764627985681,0.24255537,86579.0,86575.0,0.01155067]
[1764627985994,0.24255274,86580.0,86575.0,0.01155067]
[1764627986600,0.01155014,86579.0,86575.0,0.01255067]
[1764627986801,0.01155014,86579.0,86575.0,0.01155067]
[1764627987190,0.01155014,86579.0,86575.0,0.01255067]
[1764627987914,0.01155027,86578.0,86575.0,0.01255067]
[1764627988321,0.01155027,86578.0,86575.0,0.01155067]
[1764627988520,0.01155027,86578.0,86575.0,0.01255067]
[1764627988776,0.01155001,86580.0,86575.0,0.24356209]
[1764627988960,0.01155001,86580.0,86575.0,0.24256209]
[1764627989116,0.01155001,86580.0,86575.0,0.24356209]
[1764627989321,0.01155014,86579.0,86575.0,0.01255067]
[1764627989525,0.01155014,86579.0,86575.0,0.24356221]
[1764627989922,0.01155014,86579.0,86575.0,0.24256221]
[1764627990239,0.01155014,86579.0,86575.0,0.24356221]
[1764627990556,0.01155014,86579.0,86575.0,0.01255067]
[1764627991506,0.23101065,86577.0,86575.0,0.001]
[1764627991855,0.24256106,86577.0,86574.0,0.00025399]
[1764627992032,0.01155041,86577.0,86574.0,0.2312702]
[1764627992225,0.01155041,86577.0,86575.0,0.001]
[1764627992445,0.01155041,86577.0,86574.0,0.24282101]
[1764627992769,0.01155041,86577.0,86575.0,0.001]
[1764627994369,0.01154987,86581.0,86576.0,0.2310109]
[1764627994599,0.01155001,86580.0,86576.0,0.24256144]
[1764627994777,0.01155001,86580.0,86576.0,0.01155054]
[1764627994976,0.01154987,86581.0,86576.0,0.24256057]
[1764627995162,0.01155001,86580.0,86576.0,0.24256057]
[1764627995366,0.02491794,86582.0,86578.0,0.01155027]
[1764627995563,0.05191659,86581.0,86579.0,0.24255303]
[1764627995764,0.05191659,86581.0,86580.0,0.01155001]
[1764627996388,0.06346646,86581.0,86577.0,0.01155041]
[1764627996994,0.06346646,86581.0,86580.0,0.001]
[1764627997196,0.0883844,86581.0,86580.0,0.001]
[1764627997535,0.1688307,86581.0,86580.0,0.001]
[1764627998279,0.50341472,86581.0,86580.0,0.001]
[1764627998480,0.01155041,86577.0,86574.0,0.00025399]
[1764627998717,0.2492909,86576.0,86574.0,0.00025399]
[1764627998868,0.33458402,86575.0,86574.0,0.00025399]
[1764627999066,0.47472792,86575.0,86574.0,0.00025399]
[1764627999517,0.50587076,86575.0,86574.0,0.00025399]
[1764627999752,0.3906448,86575.0,86574.0,0.00025399]
[1764628000018,0.3916448,86575.0,86574.0,0.00025399]
[1764628001494,0.02591794,86575.0,86574.0,0.00025399]
[1764628001696,0.001,86575.0,86574.0,0.00025399]
[1764628001896,0.01258402,86575.0,86574.0,0.00025399]
[1764628003842,0.12780998,86575.0,86574.0,0.00025399]
[1764628004033,0.15735969,86575.0,86574.0,0.00025399]
[1764628004382,0.04213373,86575.0,86574.0,0.00025399]
[1764628004668,0.01721579,86575.0,86574.0,0.00025399]
[1764628006769,0.34021579,86575.0,86574.0,0.00025399]
[1764628006942,0.36513373,86575.0,86574.0,0.00025399]
[1764628007761,0.35354971,86575.0,86574.0,0.00025399]
[1764628007965,0.37182971,86575.0,86574.0,0.00025399]
[1764628009708,0.38341373,86575.0,86574.0,0.00025399]
[1764628010280,0.37182971,86575.0,86574.0,0.00025399]
[1764628011083,0.49863969,86575.0,86574.0,0.00025399]
[1764628011534,0.52978253,86575.0,86574.0,0.00025399]
[1764628011694,0.41455657,86575.0,86574.0,0.00025399]
[1764628011894,0.40297255,86575.0,86574.0,0.00025399]
[1764628013818,0.40299538,86575.0,86574.0,0.00025399]
[1764628020488,0.07999538,86575.0,86574.0,0.00025399]
[1764628020644,0.03055782,86575.0,86574.0,0.00025399]
[1764628020847,0.001,86575.0,86574.0,0.00025399]
[1764628021050,0.001,86575.0,86574.0,0.02570422]
[1764628021474,0.001,86575.0,86574.0,0.03718426]
[1764628021683,0.001,86575.0,86574.0,0.02570422]
[1764628021843,0.323,86582.0,86574.0,0.00025399]
[1764628022223,0.01155014,86579.0,86575.0,0.01155067]
[1764628022442,0.24255322,86579.0,86575.0,0.01155067]
[1764628023046,0.02492655,86581.0,86575.0,0.01155067]
[1764628023239,0.39984314,86583.0,86580.0,0.01155001]
[1764628023463,0.02492655,86582.0,86580.0,0.01155001]
[1764628023782,0.37491659,86583.0,86580.0,0.24254999]
[1764628023983,0.02492487,86582.0,86578.0,0.24255583]
[1764628024193,0.26747044,86582.0,86576.0,0.01155054]
[1764628024393,0.01154987,86581.0,86576.0,0.01155054]
[1764628024600,0.01155001,86580.0,86576.0,0.01155054]
[1764628024795,0.01155014,86579.0,86576.0,0.01155054]
[1764628025081,0.24255314,86579.0,86576.0,0.01155054]
[1764628025414,0.24255314,86579.0,86576.0,0.01255054]
[1764628025888,0.24255314,86579.0,86576.0,0.001]
[1764628026730,0.01154987,86581.0,86576.0,0.001]
[1764628026731,0.02492746,86581.0,86577.0,0.24255864]
[1764628026935,0.01154974,86582.0,86577.0,0.24255864]
[1764628026936,0.0364772,86582.0,86577.0,0.24255864]
[1764628027336,0.01154987,86581.0,86577.0,0.01155041]
[1764628027903,0.24255024,86580.0,86575.0,0.01155067]
[1764628028106,0.01155027,86578.0,86575.0,0.01155067]
[1764628028328,0.01155001,86580.0,86576.0,0.01155054]
[1764628028535,0.33454987,86581.0,86577.0,0.01155041]
[1764628028730,0.02492746,86580.0,86577.0,0.01155041]
[1764628029129,0.03647747,86580.0,86577.0,0.01155041]
[1764628029455,0.26748014,86580.0,86576.0,0.01155054]
[1764628029960,0.01155014,86579.0,86576.0,0.01155054]
[1764628030758,0.02492746,86580.0,86577.0,0.24355864]
[1764628030963,0.02492746,86581.0,86577.0,0.24255864]
[1764628031457,0.02492746,86581.0,86578.0,0.01155027]
[1764628031644,0.01155001,86580.0,86576.0,0.001]
[1764628031965,0.02492746,86581.0,86577.0,0.24255616]
[1764628032160,0.0364772,86582.0,86578.0,0.01155027]
[1764628032727,0.33454987,86581.0,86578.0,0.01155027]
[1764628032948,0.02492746,86580.0,86578.0,0.01155027]
[1764628033782,0.28291066,86583.0,86579.0,0.01155014]
[1764628033995,0.29446027,86583.0,86579.0,0.01155014]
[1764628034217,0.01828,86591.0,86574.0,0.24281906]
[1764628034218,0.03115756,86594.0,86592.0,0.23096821]
[1764628034498,0.03646574,86606.0,86600.0,0.24249182]
[1764628034656,0.01154667,86605.0,86599.0,0.01154747]
[1764628034877,0.01154654,86606.0,86602.0,0.01154707]
[1764628035227,0.01154654,86606.0,86601.0,0.23094403]
[1764628035368,0.0249192,86607.0,86602.0,0.01054707]
[1764628035706,0.01154401,86625.0,86618.0,0.01154494]
[1764628035707,0.01154414,86624.0,86618.0,0.01154494]
[1764628035861,0.05191659,86619.0,86618.0,0.01154494]
[1764628036253,0.05191659,86619.0,86617.0,0.01154507]
[1764628037032,0.05191659,86619.0,86617.0,0.24244507]
[1764628037235,0.05191659,86619.0,86617.0,0.01154507]
[1764628037622,0.01154427,86623.0,86618.0,0.01154494]
[1764628037773,0.01154427,86623.0,86613.0,0.23091087]
[1764628037774,0.23085358,86635.0,86626.0,0.21071885]
[1764628037968,0.05191659,86633.0,86627.0,0.24241864]
[1764628038169,0.05191659,86633.0,86629.0,0.01154347]
[1764628038408,0.06345953,86633.0,86627.0,0.24241864]
[1764628038621,0.06345953,86633.0,86629.0,0.01154347]
[1764628038823,0.05191659,86633.0,86630.0,0.24241024]
[1764628038981,0.06345953,86633.0,86628.0,0.01154361]
[1764628039324,0.05391659,86633.0,86629.0,0.01154347]
[1764628039536,0.05391659,86633.0,86630.0,0.01154334]
[1764628040351,0.01154321,86631.0,86628.0,0.00011562]
[1764628040556,0.33454321,86631.0,86628.0,0.00011562]
[1764628042401,0.001,86631.0,86628.0,0.00011562]
[1764628042939,0.001,86631.0,86628.0,0.23098635]
[1764628043143,0.001,86631.0,86630.0,0.2308669]
[1764628043559,0.001,86631.0,86628.0,0.24253112]
[1764628044378,0.001,86631.0,86630.0,0.2308669]
[1764628044577,0.2308541,86635.0,86630.0,0.2308669]
[1764628044578,0.01154294,86633.0,86630.0,0.24241024]
[1764628044778,0.01154294,86633.0,86630.0,0.01154334]
[1764628044981,0.001,86631.0,86630.0,0.24241024]
[1764628045950,0.001,86631.0,86630.0,0.25389028]
[1764628046278,0.001,86631.0,86630.0,0.24241024]
[1764628047733,0.001,86631.0,86630.0,0.27837028]
[1764628049714,0.56125238,86640.0,86637.0,0.01154241]
[1764628049924,0.01154201,86640.0,86637.0,0.01154241]
[1764628050665,0.01154134,86645.0,86640.0,0.23083786]
[1764628050822,0.06345807,86644.0,86640.0,0.24238219]
[1764628051018,0.06345793,86645.0,86640.0,0.24238219]
[1764628051217,0.06345793,86645.0,86641.0,0.01154187]
[1764628052326,0.01154161,86643.0,86637.0,0.003]
[1764628052516,0.01154201,86640.0,86637.0,0.003]
[1764628052713,0.01154187,86641.0,86637.0,0.01454241]
[1764628052928,0.01154187,86641.0,86637.0,0.01354241]
[1764628053133,0.01154187,86641.0,86638.0,0.01154227]
[1764628053533,0.33454161,86643.0,86640.0,0.002]
[1764628053762,0.56537649,86643.0,86638.0,0.01154227]
[1764628053896,0.01154174,86642.0,86638.0,0.01154227]
[1764628054232,0.01154187,86641.0,86637.0,0.01154241]
[1764628054431,0.01154201,86640.0,86636.0,0.02302258]
[1764628055613,0.23083106,86644.0,86636.0,0.02302258]
[1764628055614,0.05191659,86645.0,86639.0,0.01154214]
[1764628055798,0.01154161,86643.0,86639.0,0.01154214]
[1764628055998,0.01154174,86642.0,86638.0,0.2443854]
[1764628056196,0.323,86646.0,86640.0,0.01154201]
[1764628056420,0.323,86644.0,86641.0,0.01154187]
[1764628056630,0.33454148,86644.0,86640.0,0.01154201]
[1764628056807,0.23083226,86643.0,86639.0,0.24338298]
[1764628057001,0.33454148,86644.0,86639.0,0.24238298]
[1764628057340,0.01154161,86643.0,86640.0,0.01254201]
[1764628057559,0.03115756,86661.0,86653.0,0.01154028]
[1764628057750,0.01153815,86669.0,86661.0,0.01153921]
[1764628057949,0.06345527,86665.0,86660.0,0.01144]
[1764628058194,0.01153881,86664.0,86660.0,0.01144]
[1764628058316,0.01153894,86663.0,86660.0,0.01144]
[1764628058517,0.01154001,86655.0,86646.0,0.24230194]
[1764628058740,0.01154001,86655.0,86648.0,0.01154094]
[1764628058937,0.01192685,86655.0,86645.0,0.24236704]
[1764628059215,0.01192685,86655.0,86647.0,0.01154108]
[1764628059216,0.01154041,86652.0,86647.0,0.01154108]
[1764628059870,0.01154041,86652.0,86648.0,0.01154094]
[1764628060248,0.00038684,86655.0,86651.0,0.01154054]
[1764628060661,0.24272797,86655.0,86649.0,0.01144]
[1764628060841,0.01154041,86652.0,86649.0,0.01144]
[1764628061045,0.01154014,86654.0,86650.0,0.24235178]
[1764628061965,0.00038684,86655.0,86653.0,0.01144]
[1764628062479,0.00038684,86655.0,86653.0,0.03628]
[1764628063295,0.00038684,86655.0,86649.0,0.02298081]
[1764628063296,0.24234328,86654.0,86649.0,0.01144]
[1764628063493,0.01154041,86652.0,86647.0,0.01154108]
[1764628063743,0.57490434,86655.0,86653.0,0.01144]
[1764628063915,0.02480713,86654.0,86653.0,0.01144]
[1764628064177,0.00038684,86655.0,86653.0,0.01144]
[1764628064395,0.02480713,86654.0,86653.0,0.01144]
[1764628067414,0.02480713,86654.0,86653.0,0.00392752]
[1764628068188,0.02480713,86654.0,86652.0,0.23080815]
[1764628068529,0.02480713,86653.0,86652.0,0.24234856]
[1764628070934,0.02480713,86653.0,86652.0,0.24196856]
[1764628071138,0.02480713,86653.0,86651.0,0.24234967]
[1764628071341,0.02480713,86652.0,86651.0,0.24234967]
[1764628071520,0.02480713,86652.0,86651.0,0.25382971]
[1764628071947,0.02480713,86652.0,86651.0,0.24234967]
[1764628072151,0.02480713,86652.0,86651.0,0.27866971]
[1764628074775,0.02480713,86652.0,86651.0,0.26718967]
[1764628074982,0.02480713,86652.0,86651.0,0.27866971]
[1764628075189,0.02480713,86654.0,86653.0,0.24228566]
[1764628075740,0.02480713,86654.0,86653.0,0.26712566]
[1764628076420,0.02480713,86654.0,86653.0,0.02484]
[1764628079297,0.02480713,86654.0,86653.0,0.04031]
[1764628079464,0.02488829,86656.0,86653.0,0.27111356]
[1764628079767,0.01153948,86659.0,86655.0,0.2308003]
[1764628079916,0.01153948,86659.0,86656.0,0.01153988]
[1764628080323,0.24233192,86658.0,86654.0,0.01154014]
[1764628080523,0.01153948,86659.0,86655.0,0.24234009]
[1764628080796,0.01153921,86661.0,86656.0,0.24233496]
[1764628081005,0.01153934,86660.0,86656.0,0.24233496]
[1764628081225,0.01153988,86656.0,86653.0,0.00011562]
[1764628081393,0.23080296,86654.0,86653.0,0.00011562]
[1764628082615,0.01153988,86656.0,86652.0,0.01154041]
[1764628082821,0.01154001,86655.0,86652.0,0.00011564]
[1764628083357,0.01153974,86657.0,86653.0,0.2423459]
[1764628083557,0.01153988,86656.0,86652.0,0.00011564]
[1764628083783,0.01153934,86660.0,86654.0,0.01154014]
[1764628084253,0.01153948,86659.0,86654.0,0.01154014]
[1764628084706,0.01153921,86661.0,86656.0,0.01153988]
[1764628084930,0.001,86660.0,86656.0,0.01153988]
[1764628085156,0.24232535,86661.0,86656.0,0.01153988]
[1764628085419,0.37491659,86665.0,86660.0,0.01648]
[1764628085657,0.001,86659.0,86649.0,0.02298081]
[1764628085876,0.01154001,86655.0,86651.0,0.01154054]
[1764628086109,0.323,86653.0,86632.0,0.24343075]
[1764628086330,0.323,86653.0,86639.0,0.01154214]
[1764628086513,0.323,86653.0,86640.0,0.01154201]
[1764628086717,0.323,86653.0,86644.0,0.01154148]
[1764628086960,0.35415756,86653.0,86643.0,0.01154161]
[1764628087133,0.35415756,86653.0,86644.0,0.01154148]
[1764628087348,0.323,86653.0,86645.0,0.01154134]
[1764628087540,0.35417742,86653.0,86644.0,0.01154148]
[1764628087743,0.35417742,86653.0,86640.0,0.24238175]
[1764628087923,0.35417742,86653.0,86637.0,0.23084651]
[1764628088124,0.35417742,86653.0,86641.0,0.01154187]
[1764628088327,0.323,86653.0,86640.0,0.01154201]
[1764628088526,0.323,86653.0,86641.0,0.01154187]
[1764628089072,0.323,86653.0,86640.0,0.01154201]
[1764628089211,0.323,86653.0,86638.0,0.01154227]
[1764628089553,0.323,86653.0,86641.0,0.01154187]
[1764628089783,0.323,86653.0,86642.0,0.01154174]
[1764628090157,0.323,86653.0,86641.0,0.01154187]
[1764628090925,0.323,86653.0,86636.0,0.01154254]
[1764628091130,0.323,86653.0,86639.0,0.01154214]
[1764628091589,0.34793262,86653.0,86637.0,0.24238823]
[1764628091837,0.34793262,86653.0,86625.0,0.25722939]
[1764628091838,0.46203057,86653.0,86625.0,0.25722939]
[1764628092003,0.46203057,86653.0,86633.0,0.01257]
[1764628092004,0.01154241,86637.0,86633.0,0.01257]
[1764628092356,0.01154254,86636.0,86633.0,0.01295684]
[1764628092561,0.01154254,86636.0,86633.0,0.02449978]
[1764628092763,0.06345886,86638.0,86634.0,0.24239905]
[1764628092949,0.06345886,86638.0,86634.0,0.01154281]
[1764628093386,0.01154227,86638.0,86633.0,0.02649978]
[1764628093544,0.01154241,86637.0,86633.0,0.02449978]
[1764628093725,0.01154241,86637.0,86633.0,0.28170671]
[1764628093943,0.01154227,86638.0,86636.0,0.01648]
[1764628094141,0.06345886,86638.0,86636.0,0.01648]
[1764628094511,0.29430625,86638.0,86636.0,0.01648]
[1764628094650,0.10832849,86638.0,86636.0,0.01648]
[1764628094849,0.01154227,86638.0,86637.0,0.01648]
[1764628095071,0.01154201,86640.0,86637.0,0.01648]
[1764628095273,0.01154201,86640.0,86637.0,0.25887024]
[1764628095594,0.24237867,86642.0,86639.0,0.01648]
[1764628096148,0.24237867,86642.0,86640.0,0.01257]
[1764628096550,0.01154174,86642.0,86640.0,0.01257]
[1764628096779,0.24237924,86642.0,86640.0,0.01257]
[1764628096957,0.24237924,86642.0,86639.0,0.001]
[1764628096958,0.23084025,86640.0,86639.0,0.001]
[1764628097163,0.01154254,86636.0,86630.0,0.01154334]
[1764628097384,0.06345873,86639.0,86635.0,0.23085358]
[1764628097580,0.06345873,86639.0,86634.0,0.01154281]
[1764628097785,0.05191659,86639.0,86635.0,0.01154267]
[1764628098111,0.01154227,86638.0,86635.0,0.01154267]
[1764628098264,0.2423897,86638.0,86634.0,0.01154281]
[1764628098804,0.01154241,86637.0,86634.0,0.01154281]
[1764628099715,0.24239292,86637.0,86634.0,0.001]
[1764628099918,0.24239292,86637.0,86633.0,0.01295684]
[1764628100119,0.01154241,86637.0,86634.0,0.002]
[1764628101108,0.23085091,86636.0,86634.0,0.002]
[1764628102155,0.23085091,86636.0,86633.0,0.01295684]
[1764628102156,0.24239345,86636.0,86633.0,0.01295684]
[1764628102368,0.23085567,86635.0,86633.0,0.01295684]
[1764628102665,0.23085567,86635.0,86634.0,0.002]
[1764628103233,0.23085567,86635.0,86633.0,0.01295684]
[1764628103649,0.40206375,86634.0,86633.0,0.00238684]
[1764628103841,0.35948328,86634.0,86633.0,0.00038684]
[1764628104227,0.45033227,86634.0,86633.0,0.00038684]
[1764628104436,0.50781798,86634.0,86633.0,0.00038684]
[1764628104682,0.24249728,86599.0,86596.0,0.01257]
[1764628104890,0.24249728,86599.0,86596.0,0.01268581]
[1764628104891,0.282871,86598.0,86596.0,0.01268581]
[1764628105689,0.282871,86598.0,86596.0,0.00011581]
[1764628106776,0.282871,86598.0,86596.0,0.00211581]
[1764628107182,0.282871,86598.0,86596.0,0.00011581]
[1764628107597,0.34124,86597.0,86596.0,0.00011581]
[1764628107814,0.37764666,86597.0,86596.0,0.00011581]
[1764628108016,0.39021666,86597.0,86596.0,0.00011581]
[1764628108463,0.37863264,86597.0,86596.0,0.00211581]
[1764628108869,0.37863264,86597.0,86596.0,0.00011581]
[1764628110463,0.35381,86597.0,86596.0,0.00011581]
[1764628110834,0.34128,86597.0,86596.0,0.00011581]
[1764628111831,0.34228,86597.0,86596.0,0.00011581]
[1764628114718,0.324,86597.0,86596.0,0.00011581]
[1764628120191,0.43501393,86597.0,86596.0,0.00011581]
[1764628120596,0.324,86597.0,86596.0,0.00011581]
[1764628121558,0.001,86597.0,86596.0,0.05441581]
[1764628122067,0.001,86597.0,86596.0,0.02071581]
[1764628122278,0.001,86597.0,86596.0,0.05441581]
[1764628123252,0.001,86597.0,86596.0,0.28537336]
[1764628123572,0.33454707,86602.0,86598.0,0.01154761]
[1764628123829,0.24249359,86601.0,86597.0,0.0337]
[1764628124042,0.01154734,86600.0,86597.0,0.0337]
[1764628124390,0.24249613,86600.0,86597.0,0.0337]
[1764628124588,0.24249613,86600.0,86599.0,0.0206]
[1764628124958,0.01154734,86600.0,86599.0,0.0543]
[1764628125162,0.07154734,86600.0,86599.0,0.0543]
[1764628125567,0.06,86600.0,86599.0,0.0543]
[1764628127088,0.06,86600.0,86599.0,0.0553]
[1764628132508,0.06,86600.0,86599.0,0.001]
[1764628132636,0.29094688,86600.0,86599.0,0.001]